fUSD/lending_fUSD_20241106
["ID","MTS","AMOUNT","RATE_DAILY","PERIOD"]
[341459372,1730907031997,-1599.58,0.00033763,2]
[341459373,1730907032006,-223.89,0.0003382,2]
[341459374,1730907032016,-1005.14,0.00033836,2]
[341459375,1730907032026,-10741.11,0.00033879,2]
[341459376,1730907032036,-177.32,0.00034052,2]
[341459377,1730907032046,-177.32,0.0003407,2]
[341459378,1730907032057,-177.32,0.00034088,2]
[341459379,1730907032066,-177.32,0.00034106,2]
[341459380,1730907032076,-177.32,0.00034124,2]
[341459381,1730907032085,-177.32,0.00034142,2]
[341459382,1730907032095,-177.32,0.0003416,2]
[341459383,1730907032104,-177.32,0.00034178,2]
[341459384,1730907032113,-177.32,0.00034196,2]
[341459385,1730907032122,-177.32,0.00034214,2]
[341459386,1730907032132,-177.32,0.00034231,2]
[341459387,1730907032142,-1000.0,0.00034248,2]
[341459388,1730907032152,-177.32,0.00034249,2]
[341459389,1730907032161,-177.32,0.00034267,2]
[341459390,1730907032171,-177.32,0.00034285,2]
[341459391,1730907032180,-177.32,0.00034303,2]
[341459392,1730907032189,-177.32,0.00034321,2]
[341459393,1730907032202,-177.32,0.00034339,2]
[341459394,1730907032211,-177.32,0.00034357,2]
[341459395,1730907032220,-177.32,0.00034375,2]
[341459396,1730907032230,-10741.11,0.00034383,2]
[341459397,1730907032239,-177.32,0.00034393,2]
[341459398,1730907032248,-8558.39686667,0.00034431,15]
[341459399,1730907032258,-271.79786337,0.00034431,2]
[341459400,1730907032268,-250.2749,0.00034508,30]
[341459401,1730907032282,-334.25,0.00034521,10]
[341459402,1730907032291,-345.4,0.00034521,10]
[341459403,1730907032300,-218.0,0.00034531,2]
[341459404,1730907032310,-3050.6727,0.00034531,2]
[341459405,1730907032321,-25645.5811,0.00034531,2]
[341459406,1730907032330,-1456.3216,0.00034531,2]
[341459407,1730907032339,-153.90653806,0.00034531,2]
[341459408,1730907032350,-204.28,0.00034558,120]
[341459409,1730907032359,-164.803,0.0003456,14]
[341459410,1730907032368,-166.94,0.0003468,2]
[341459411,1730907032377,-948.4319,0.00034682,2]
[341459412,1730907032387,-8558.39686661,0.00034816,15]
[341459413,1730907032397,-10741.11,0.00034887,2]
[341459414,1730907032407,-8533.7110541,0.00034904,2]
[341459415,1730907032417,-271.79786336,0.00034924,2]
[341459416,1730907032426,-427.45,0.00034932,2]
[341459417,1730907032436,-761.58,0.00034932,2]
[341459418,1730907032449,-761.58,0.00034932,2]
[341459419,1730907032459,-427.45,0.00034932,2]
[341459420,1730907032468,-427.45,0.00034932,2]
[341459421,1730907032478,-761.58,0.00034932,2]
[341459422,1730907032487,-761.58,0.00034932,2]
[341459423,1730907032497,-427.45,0.00034932,2]
[341459424,1730907032506,-761.58,0.00034932,2]
[341459425,1730907032516,-1116.34,0.00034932,2]
[341459426,1730907032526,-500.0,0.00034998,7]
[341459427,1730907032536,-328.23864748,0.00034998,7]
[341459428,1730907032545,-500.0,0.00034998,7]
[341459429,1730907032555,-18724.1605,0.00035,2]
[341459430,1730907032565,-8680.54320464,0.00035,2]
[341459431,1730907032574,-15961.47513305,0.00035,2]
[341459432,1730907032584,-1049.69065654,0.00035,2]
[341459433,1730907032594,-600.0,0.00035,2]
[341459434,1730907032604,-223.89,0.00035104,2]
[341459435,1730907032613,-4485.9840102,0.00035202,15]
[341459436,1730907032672,-4072.41285641,0.00035202,15]
[341459437,1730907032682,-271.79786336,0.00035416,2]
[341459438,1730907032694,-1005.14,0.00035447,2]
[341459439,1730907032706,-992.76,0.00035452,42]
[341459440,1730907032719,-757.18167228,0.00035465,2]
[341459441,1730907032759,-5358.28634486,0.00035465,2]
[341459442,1730907032779,-1075.696575,0.00035465,2]
[341459443,1730907032805,-877.19624056,0.00035465,2]
[341459444,1730907032816,-10566.5343673,0.00035465,2]
[341459445,1730907032826,-2697.1448,0.00035465,2]
[341459447,1730907032835,-230.2515779,0.00035485,9]
[341459448,1730907032844,-40609.6412875,0.0003549,2]
[341459449,1730907032854,-40609.6412875,0.00035496,2]
[341459450,1730907032863,-213.0,0.000355,2]
[341459451,1730907032872,-179.76133896,0.000355,2]
[341459452,1730907032882,-1100.0,0.000355,12]
[341459453,1730907032892,-1050.0,0.000355,7]
[341459454,1730907032902,-598.87328536,0.00035504,7]
[341459455,1730907032911,-8554.9847,0.00035506,2]
[341459456,1730907032921,-1468.5218,0.00035506,2]
[341459457,1730907032930,-100000.0,0.00035506,2]
[341459458,1730907032939,-271.0967894,0.00035516,2]
[341459459,1730907032953,-5270.23082042,0.00035516,2]
[341459460,1730907032962,-258.94779477,0.00035516,2]
[341459461,1730907032972,-162.86076487,0.00035573,5]
[341459462,1730907032981,-151.92853636,0.00035573,5]
[341459463,1730907032990,-581.42789513,0.00035573,5]
[341459464,1730907032999,-204.29023338,0.00035573,5]
[341459465,1730907033009,-10868.84096818,0.0003558,2]
[341459466,1730907037939,-153.34457126,0.0003443,7]
[341459467,1730907037949,-287.83,0.00034521,10]
[341459468,1730907037959,-500.0,0.00035489,7]
[341459469,1730907037968,-46.9600807,0.0003558,2]
[341459470,1730907037983,-2659.1,0.0003558,2]
[341459471,1730907037995,-67644.38152622,0.0003558,2]
[341459472,1730907038004,-6514.61847381,0.0003558,2]
[341459473,1730907038040,-46.72053655,0.0003558,2]
[341459474,1730907038059,-593.07,0.0003558,2]
[341459475,1730907038074,-21043.18603764,0.0003558,2]
[341459476,1730907038084,-151.0,0.00035585,7]
[341459477,1730907038093,-151.0,0.00035585,7]
[341459478,1730907038102,-1374.113388,0.00035585,7]
[341459479,1730907038111,-1374.113388,0.00035585,7]
[341459480,1730907038121,-151.0,0.00035585,7]
[341459481,1730907038130,-61340.2058971,0.00035586,2]
[341459482,1730907038142,-1844.47718288,0.00035586,2]
[341459483,1730907038168,-2057.49691761,0.00035586,2]
[341459484,1730907038179,-37616.033428,0.00035586,2]
[341459524,1730907039754,-1279.70758413,0.00034609,2]
[341459526,1730907039765,-501.0282117,0.00034609,2]
[341459529,1730907039845,-486.51420417,0.00034609,2]
[341459532,1730907039856,-429.76705324,0.00035489,7]
[341459533,1730907039865,-799.03166091,0.00035586,2]
[341459535,1730907039876,-1327.44500001,0.00035586,2]
[341459598,1730907044433,-120.70511653,0.00035586,2]
[341459603,1730907044528,-16723.52865996,0.00035586,2]
[341459604,1730907044537,-84592.785144,0.00035586,2]
[341459605,1730907044546,-419.51,0.00035586,120]
[341459606,1730907044555,-28197.595048,0.00035586,2]
[341459607,1730907044564,-8558.39686661,0.00035587,15]
[341459608,1730907044574,-151.0,0.0003559,7]
[341459609,1730907044583,-151.0,0.0003559,7]
[341459610,1730907044592,-151.0,0.0003559,7]
[341459611,1730907044601,-35472.09466305,0.0003559,2]
[341459612,1730907044646,-13296.50000025,0.0003559,2]
[341459613,1730907044658,-50964.5849484,0.0003559,2]
[341459642,1730907045602,-103315.0268263,0.0003559,2]
[341459643,1730907045612,-197383.165336,0.0003559,2]
[341459644,1730907045622,-151.0,0.0003559,7]
[341459645,1730907045632,-151.0,0.0003559,7]
[341459646,1730907045642,-151.0,0.0003559,7]
[341459647,1730907045651,-151.0,0.0003559,7]
[341459648,1730907045661,-151.0,0.0003559,7]
[341459649,1730907045671,-151.0,0.0003559,7]
[341459650,1730907045681,-151.0,0.0003559,7]
[341459651,1730907045690,-151.0,0.0003559,7]
[341459652,1730907045700,-1374.113388,0.0003559,7]
[341459653,1730907045712,-1374.113388,0.0003559,7]
[341459654,1730907045722,-1374.113388,0.0003559,7]
[341459655,1730907045732,-1374.113388,0.0003559,7]
[341459656,1730907045742,-151.0,0.0003559,7]
[341459657,1730907045752,-151.0,0.0003559,7]
[341459658,1730907045762,-151.0,0.0003559,7]
[341459659,1730907045772,-151.0,0.0003559,7]
[341459660,1730907045782,-276.490249,0.0003559,7]
[341459661,1730907045791,-276.490249,0.0003559,7]
[341459662,1730907045801,-276.490249,0.0003559,7]
[341459663,1730907045811,-276.490249,0.0003559,7]
[341459664,1730907045821,-155.644231,0.0003559,7]
[341459665,1730907045832,-151.0,0.0003559,7]
[341459666,1730907045841,-212.293048,0.0003559,7]
[341459667,1730907045852,-81219.2825751,0.00035596,2]
[341459668,1730907045862,-112790.380192,0.00035596,2]
[341459669,1730907045872,-165.244924,0.00035596,7]
[341459670,1730907045882,-165.244924,0.00035596,7]
[341459671,1730907045892,-151.0,0.00035596,7]
[341459672,1730907045901,-151.0,0.00035596,7]
[341459673,1730907045912,-151.0,0.00035596,7]
[341459674,1730907045922,-151.0,0.00035596,7]
[341459675,1730907045932,-151.0,0.00035596,7]
[341459676,1730907045942,-151.0,0.00035596,7]
[341459677,1730907045952,-151.0,0.00035596,7]
[341459678,1730907045966,-151.0,0.00035596,7]
[341459679,1730907045976,-151.0,0.00035596,7]
[341459680,1730907045987,-151.0,0.00035596,7]
[341459681,1730907045996,-169.26185,0.00035596,7]
[341459682,1730907046006,-151.0,0.00035596,7]
[341459683,1730907046016,-151.0,0.00035596,7]
[341459684,1730907046026,-151.0,0.00035596,7]
[341459685,1730907046036,-151.0,0.00035596,7]
[341459686,1730907046047,-151.0,0.00035596,7]
[341459687,1730907046057,-151.0,0.00035596,7]
[341459688,1730907046067,-151.0,0.00035596,7]
[341459689,1730907046078,-151.0,0.00035596,7]
[341459691,1730907046088,-151.0,0.00035596,7]
[341459693,1730907046099,-162.556269,0.00035596,7]
[341459695,1730907046109,-374.868875,0.00035596,7]
[341459697,1730907046119,-374.868875,0.00035596,7]
[341459699,1730907046128,-374.868875,0.00035596,7]
[341459701,1730907046138,-151.0,0.00035596,7]
[341459703,1730907046148,-374.868875,0.00035596,7]
[341459705,1730907046158,-151.0,0.00035596,7]
[341459707,1730907046167,-151.0,0.00035596,7]
[341459709,1730907046178,-154.456834,0.00035596,7]
[341459711,1730907046188,-261.152052,0.00035596,7]
[341459712,1730907046197,-179.44941,0.00035596,7]
[341459714,1730907046207,-151.0,0.00035596,7]
[341459716,1730907046219,-151.0,0.00035596,7]
[341459718,1730907046229,-151.0,0.00035596,7]
[341459720,1730907046239,-151.0,0.00035596,7]
[341459722,1730907046250,-151.0,0.00035596,7]
[341459723,1730907046260,-151.0,0.00035596,7]
[341459724,1730907046270,-151.0,0.00035596,7]
[341459725,1730907046282,-151.0,0.00035596,7]
[341459726,1730907046292,-1374.113388,0.00035596,7]
[341459727,1730907046302,-1374.113388,0.00035596,7]
[341459728,1730907046311,-151.0,0.00035596,7]
[341459729,1730907046322,-259.7615,0.00035596,7]
[341459730,1730907046332,-276.490249,0.00035596,7]
[341459731,1730907046342,-276.490249,0.00035596,7]
[341459732,1730907046354,-40609.6412875,0.00035596,2]
[341459733,1730907046364,-398.0,0.000356,21]
[341459734,1730907046374,-110529.76482562,0.000356,2]
[341459736,1730907046387,-1015.62184633,0.000356,2]
[341459790,1730907046914,-1439.79704897,0.000356,2]
[341459795,1730907046952,-744.435851,0.000356,2]
[341459816,1730907047136,-49.15424428,0.000356,2]
[341459821,1730907047175,-24.29201899,0.000356,2]
[341459860,1730907113465,223.89,0.00030869,2]
[341459861,1730907135936,500.0,0.00031,30]
[341459862,1730907137519,264.822,0.0003,2]
[341459863,1730907137760,264.822,0.00030507,2]
[341459864,1730907162746,150.0,0.00018123,2]
[341459865,1730907181294,300.0,0.00019725,2]
[341459866,1730907204905,150.0,0.00018123,2]
[341459868,1730907245848,150.0,0.00018123,2]
[341459869,1730907287653,151.29102044,0.00018123,2]
[341459872,1730907616788,160.26,0.00015342,2]
[341459874,1730907810386,18495.81785172,0.0002,2]
[341459876,1730907947139,-258.37866457,0.00027,2]
[341459877,1730907947162,-351.68874297,0.000271,2]
[341459878,1730907951088,-1646.31125703,0.000271,2]
[341459879,1730907951109,-916.0,0.000271,2]
[341459880,1730907951131,-243.08875,0.0003,2]
[341459881,1730907951152,-155.122,0.0003,2]
[341459882,1730907951175,-198.1825,0.0003,2]
[341459883,1730907951196,-25.43064924,0.0003,120]
[341459950,1730908036523,-256.81483216,0.0002985,2]
[341459951,1730908052116,-594.26405784,0.0002985,2]
[341459952,1730908052137,-125.56935076,0.0003,120]
[341459953,1730908052158,-274.0505,0.0003,2]
[341459954,1730908052179,-175.0,0.0003,2]
[341459955,1730908052200,-2016.63,0.00030093,2]
[341459956,1730908052220,-176.82,0.00030538,2]
[341459957,1730908052244,-243.08875,0.00030787,2]
[341459958,1730908052265,-1769.40694141,0.000309,2]
[341459959,1730908089367,-163.42,0.00031545,120]
[341459960,1730908124512,157.67,0.00015342,2]
[341459962,1730908141516,300.0,0.00019725,2]
[341459963,1730908150096,-171.0465,0.0003,2]
[341459964,1730908150119,-150.99,0.000309,2]
[341459965,1730908150139,-572.08,0.000309,2]
[341459966,1730908150160,-4161.87,0.000309,2]
[341459967,1730908150181,-2524.34635096,0.00031,2]
[341459968,1730908150202,-198.1825,0.00031178,2]
[341459969,1730908150223,-274.0505,0.00031322,2]
[341459970,1730908150244,-203.47576448,0.00031351,2]
[341459971,1730908150277,-6883.52423552,0.00031351,2]
[341459972,1730908150298,-2466.53,0.00031425,2]
[341459973,1730908150318,-240.74,0.00031425,2]
[341459974,1730908150342,-6812.03,0.00031496,2]
[341459975,1730908150363,-250.0,0.00031551,2]
[341459976,1730908150387,-228.11,0.00031564,2]
[341459977,1730908154115,-382.11,0.00031966,2]
[341459978,1730908154140,-382.11,0.00031983,2]
[341459979,1730908154164,-382.11,0.00032,2]
[341459980,1730908154187,-1794.04044383,0.00032002,2]
[341459981,1730908179094,1974.05,0.00030687,2]
[341459987,1730908210136,-394.54,0.00032228,120]
[341459988,1730908210160,-460.54,0.00032439,120]
[341459989,1730908217407,223.89,0.00031018,2]
[341459990,1730908224775,150.0,0.00018123,2]
[341459999,1730908231910,-2712.87737525,0.00032002,2]
[341460000,1730908231923,-2305.11218092,0.00032002,2]
[341460001,1730908231932,-382.11,0.00032017,2]
[341460002,1730908231941,-382.11,0.00032034,2]
[341460003,1730908231950,-50000.0,0.00032041,2]
[341460004,1730908231959,-382.11,0.0003205,2]
[341460005,1730908231969,-382.11,0.00032067,2]
[341460006,1730908231978,-382.11,0.00032084,2]
[341460007,1730908231987,-382.11,0.00032101,2]
[341460008,1730908231996,-382.11,0.00032118,2]
[341460009,1730908232006,-382.11,0.00032135,2]
[341460010,1730908232016,-176.82,0.00032145,2]
[341460011,1730908232026,-382.11,0.00032151,2]
[341460012,1730908232036,-382.11,0.00032168,2]
[341460013,1730908232046,-382.11,0.00032185,2]
[341460014,1730908232056,-382.11,0.00032202,2]
[341460015,1730908232066,-219.7,0.00032207,2]
[341460016,1730908232075,-382.11,0.00032219,2]
[341460017,1730908232085,-812.06,0.00032221,2]
[341460018,1730908232096,-520.51,0.00032226,4]
[341460019,1730908232108,-1597.14,0.0003223,2]
[341460020,1730908232118,-23900.0,0.0003223,2]
[341460022,1730908232129,-382.11,0.00032235,2]
[341460023,1730908232144,-402.05,0.00032236,2]
[341460024,1730908232154,-382.11,0.00032252,2]
[341460025,1730908232163,-250.0,0.00032253,2]
[341460026,1730908232173,-382.11,0.00032269,2]
[341460027,1730908232182,-250.0,0.00032271,2]
[341460028,1730908232192,-382.11,0.00032286,2]
[341460029,1730908232202,-200.0,0.00032319,7]
[341460030,1730908232211,-9044.28,0.00032434,2]
[341460031,1730908232220,-2171.03,0.00032434,2]
[341460032,1730908232229,-1169.84,0.00032488,2]
[341460033,1730908232239,-6812.03,0.00032508,2]
[341460034,1730908232248,-244.01,0.00032565,2]
[341460035,1730908232258,-150.0,0.00032614,2]
[341460036,1730908232267,-771.71,0.00032627,2]
[341460037,1730908232276,-160.26,0.0003272,2]
[341460038,1730908232286,-4464.42,0.00032796,2]
[341460039,1730908232295,-171.0465,0.0003285,2]
[341460040,1730908232304,-1000.0,0.00032874,2]
[341460041,1730908232314,-160.80802806,0.00032877,2]
[341460042,1730908232325,-1974.05,0.00032951,2]
[341460043,1730908232334,-6812.03,0.00033014,2]
[341460044,1730908232344,-170.01,0.0003331,120]
[341460045,1730908232353,-163.16,0.00033366,2]
[341460046,1730908232362,-223.66,0.00033366,2]
[341460047,1730908232372,-6812.03,0.00033521,2]
[341460048,1730908232388,-200.0,0.0003354,2]
[341460049,1730908232398,-176.82,0.00033752,2]
[341460050,1730908232407,-402.05,0.00033848,2]
[341460051,1730908232417,-650.21786159,0.00034016,2]
[341460052,1730908232426,-6812.03,0.00034027,2]
[341460053,1730908232436,-152.39,0.00034134,120]
[341460054,1730908232445,-199.88,0.00034523,10]
[341460055,1730908232454,-6812.03,0.00034533,2]
[341460056,1730908232463,-255.66,0.00034618,2]
[341460057,1730908232473,-31336.1289,0.000348,2]
[341460058,1730908232483,-307.69,0.00034833,2]
[341460059,1730908232492,-171.35296083,0.00034849,120]
[341460060,1730908232501,-11664.7333,0.000349,2]
[341460061,1730908232511,-162.57,0.0003497,2]
[341460062,1730908232521,-1000.0,0.00035,2]
[341460063,1730908232531,-460.54,0.00035023,120]
[341460064,1730908232541,-223.66,0.00035035,2]
[341460065,1730908232551,-6812.03,0.00035039,2]
[341460066,1730908232561,-1974.05,0.00035215,2]
[341460067,1730908232571,-1000.0,0.000353,7]
[341460068,1730908232580,-150.0,0.00035342,2]
[341460069,1730908232590,-865.16,0.00035342,2]
[341460070,1730908232599,-150.0,0.00035342,2]
[341460071,1730908232608,-150.0,0.00035342,2]
[341460072,1730908232618,-176.82,0.0003536,2]
[341460073,1730908232631,-2500.0,0.0003539,2]
[341460074,1730908232641,-180.0,0.00035395,2]
[341460075,1730908232650,-1000.0,0.000354,7]
[341460076,1730908232659,-882.02,0.00035452,42]
[341460077,1730908232668,-402.05,0.0003546,2]
[341460078,1730908232679,-672.00721885,0.0003548,2]
[341460079,1730908232688,-163.42,0.00035488,120]
[341460080,1730908232697,-14745.167,0.000355,2]
[341460081,1730908232707,-18629.60089733,0.000355,2]
[341460082,1730908232716,-1200.0,0.000355,12]
[341460083,1730908232727,-6275.83070321,0.000355,2]
[341460084,1730908232736,-202.13202661,0.00035573,2]
[341460085,1730908232746,-500.0,0.00035573,2]
[341460086,1730908232755,-500.0,0.00035574,7]
[341460087,1730908232765,-150.83693726,0.00035574,7]
[341460088,1730908232774,-218.0,0.00035575,2]
[341460089,1730908232784,-78169.4566117,0.00035575,2]
[341460090,1730908232793,-4000.0,0.0003558,5]
[341460091,1730908232803,-78169.4566117,0.0003558,2]
[341460092,1730908232812,-164.79,0.0003558,2]
[341460093,1730908232822,-117254.184918,0.00035586,2]
[341460094,1730908232831,-133325.585281,0.00035586,2]
[341460095,1730908232840,-151.0,0.0003559,7]
[341460096,1730908232850,-151.0,0.0003559,7]
[341460097,1730908232859,-151.0,0.0003559,7]
[341460098,1730908232868,-163.743462,0.0003559,7]
[341460099,1730908232878,-151.0,0.0003559,7]
[341460100,1730908232888,-151.0,0.0003559,7]
[341460101,1730908232896,-299.8951,0.0003559,7]
[341460102,1730908232910,-299.8951,0.0003559,7]
[341460103,1730908232923,-151.0,0.0003559,7]
[341460104,1730908232937,-824.468033,0.0003559,7]
[341460105,1730908232950,-151.0,0.0003559,7]
[341460106,1730908232961,-156338.913223,0.0003559,2]
[341460107,1730908232974,-133325.585281,0.0003559,2]
[341460108,1730908232987,-151.0,0.0003559,7]
[341460109,1730908233000,-151.44439,0.0003559,7]
[341460110,1730908233013,-151.0,0.0003559,7]
[341460111,1730908233026,-500.0,0.00035595,2]
[341460112,1730908233040,-151.0,0.00035596,7]
[341460113,1730908233054,-151.0,0.00035596,7]
[341460114,1730908233066,-151.0,0.00035596,7]
[341460115,1730908233081,-151.0,0.00035596,7]
[341460116,1730908233093,-151.0,0.00035596,7]
[341460117,1730908233107,-151.0,0.00035596,7]
[341460118,1730908233121,-151.0,0.00035596,7]
[341460119,1730908233135,-151.0,0.00035596,7]
[341460120,1730908233148,-203.115346,0.00035596,7]
[341460121,1730908233159,-172.776739,0.00035596,7]
[341460122,1730908233172,-151.0,0.00035596,7]
[341460123,1730908233185,-299.8951,0.00035596,7]
[341460124,1730908233198,-299.8951,0.00035596,7]
[341460125,1730908233213,-151.0,0.00035596,7]
[341460126,1730908233228,-824.468033,0.00035596,7]
[341460127,1730908233242,-183.10552,0.00035596,7]
[341460128,1730908233255,-151.0,0.00035596,7]
[341460129,1730908233266,-26665.1170563,0.00035596,2]
[341460130,1730908233278,-136196.93416481,0.000356,2]
[341460131,1730908233290,-130230.9910051,0.000356,2]
[341460132,1730908233304,-398.0,0.000356,21]
[341460133,1730908233317,-151.0,0.000356,7]
[341460134,1730908233330,-151.0,0.000356,7]
[341460135,1730908233340,-151.0,0.000356,7]
[341460136,1730908233354,-151.0,0.000356,7]
[341460137,1730908233366,-151.0,0.000356,7]
[341460138,1730908233380,-151.0,0.000356,7]
[341460139,1730908233393,-151.0,0.000356,7]
[341460140,1730908233404,-298.4685905,0.000356,2]
[341460141,1730908233415,-151.0,0.000356,7]
[341460142,1730908233427,-1462.0803086,0.000356,2]
[341460143,1730908233439,-641.32143,0.000356,2]
[341460144,1730908233451,-151.0,0.000356,7]
[341460145,1730908233467,-299.8951,0.000356,7]
[341460146,1730908233479,-299.8951,0.000356,7]
[341460147,1730908233491,-151.0,0.000356,7]
[341460148,1730908233503,-2400.0,0.000356,12]
[341460149,1730908233515,-824.468033,0.000356,7]
[341460150,1730908233527,-151.0,0.000356,7]
[341460151,1730908233539,-151.0,0.000356,7]
[341460152,1730908233551,-194.94105961,0.000356,14]
[341460153,1730908233563,-193.543175,0.000356,7]
[341460154,1730908233575,-193.543175,0.000356,7]
[341460155,1730908233587,-285.91686224,0.00035605,2]
[341460156,1730908233600,-195423.641529,0.00035606,2]
[341460157,1730908233611,-319981.404675,0.00035606,2]
[341460158,1730908233623,-1000.0,0.00035606,2]
[341460159,1730908233641,-1000.0,0.00035606,2]
[341460160,1730908233654,-1000.0,0.00035606,2]
[341460161,1730908233666,-1000.0,0.00035606,2]
[341460162,1730908233678,-1000.0,0.00035606,2]
[341460163,1730908233690,-1000.0,0.00035606,2]
[341460164,1730908233703,-1000.0,0.00035606,2]
[341460165,1730908233715,-1000.0,0.00035606,2]
[341460166,1730908233727,-1000.0,0.00035606,2]
[341460167,1730908233739,-1000.0,0.00035606,2]
[341460168,1730908233751,-1000.0,0.00035606,2]
[341460169,1730908233764,-1000.0,0.00035606,2]
[341460170,1730908233776,-1000.0,0.00035606,2]
[341460171,1730908233788,-1000.0,0.00035606,2]
[341460172,1730908233801,-1000.0,0.00035606,2]
[341460173,1730908233812,-1000.0,0.00035606,2]
[341460174,1730908233824,-1000.0,0.00035606,2]
[341460175,1730908233836,-1000.0,0.00035606,2]
[341460176,1730908233848,-1000.0,0.00035606,2]
[341460177,1730908233861,-1000.0,0.00035606,2]
[341460178,1730908233872,-1000.0,0.00035606,2]
[341460179,1730908233887,-198.86744265,0.00035606,2]
[341460180,1730908233904,-801.13255735,0.00035606,2]
[341460181,1730908233916,-1000.0,0.00035606,2]
[341460182,1730908233928,-1000.0,0.00035606,2]
[341460183,1730908233940,-1000.0,0.00035606,2]
[341460184,1730908233952,-1000.0,0.00035606,2]
[341460185,1730908233964,-1000.0,0.00035606,2]
[341460186,1730908233976,-1000.0,0.00035606,2]
[341460187,1730908233988,-1000.0,0.00035606,2]
[341460188,1730908234000,-1000.0,0.00035606,2]
[341460189,1730908234012,-1000.0,0.00035606,2]
[341460190,1730908234023,-1000.0,0.00035606,2]
[341460191,1730908234036,-532.25802406,0.00035606,2]
[341460192,1730908234048,-151.0,0.00035606,7]
[341460193,1730908234060,-151.0,0.00035606,7]
[341460194,1730908234071,-151.0,0.00035606,7]
[341460195,1730908234083,-151.0,0.00035606,7]
[341460196,1730908234095,-151.0,0.00035606,7]
[341460197,1730908234108,-151.0,0.00035606,7]
[341460198,1730908234120,-151.0,0.00035606,7]
[341460199,1730908234135,-151.0,0.00035606,7]
[341460200,1730908234147,-151.0,0.00035606,7]
[341460201,1730908234159,-151.0,0.00035606,7]
[341460202,1730908234171,-151.0,0.00035606,7]
[341460203,1730908234184,-151.0,0.00035606,7]
[341460204,1730908234196,-151.0,0.00035606,7]
[341460205,1730908234208,-151.0,0.00035606,7]
[341460206,1730908234220,-151.0,0.00035606,7]
[341460207,1730908234233,-150.47356941,0.00035606,2]
[341460208,1730908234245,-150.0,0.00035606,2]
[341460209,1730908234257,-500.0,0.00035606,2]
[341460210,1730908234269,-150.0,0.00035606,2]
[341460211,1730908234281,-150.0,0.00035606,2]
[341460212,1730908234293,-500.0,0.00035606,2]
[341460213,1730908234304,-201.6763901,0.00035606,2]
[341460214,1730908234316,-500.0,0.00035606,2]
[341460215,1730908234328,-151.0,0.00035606,7]
[341460216,1730908234339,-151.0,0.00035606,7]
[341460217,1730908234351,-193.543175,0.00035606,7]
[341460218,1730908234363,-193.543175,0.00035606,7]
[341460219,1730908234375,-193.543175,0.00035606,7]
[341460220,1730908234389,-150.0,0.00035615,7]
[341460221,1730908234401,-500.0,0.00035616,7]
[341460222,1730908234413,-500.0,0.00035616,7]
[341460223,1730908234425,-162.19173128,0.00035616,7]
[341460224,1730908234440,-337.80826872,0.00035616,7]
[341460225,1730908234452,-339.84401184,0.00035616,7]
[341460226,1730908234464,-500.0,0.00035616,7]
[341460227,1730908234476,-563.6436811,0.00035616,7]
[341460228,1730908234488,-500.0,0.00035616,7]
[341460229,1730908234500,-500.0,0.00035616,7]
[341460230,1730908234513,-500.0,0.00035616,7]
[341460231,1730908234525,-500.0,0.00035616,7]
[341460232,1730908234537,-500.0,0.00035616,7]
[341460233,1730908234549,-503.90941055,0.00035616,7]